Cogmind - Beta 9.6 @@@ ROGUE MODE // 2020.05.02 @ 17:03:53 Player: Ahrs Ahrtis Result: Destroyed by G-47 Trooper with Particle Gun Performance ------------- Evolutions (1) 500 Regions Visited (2) 400 Robots Destroyed (31) 155 Value Destroyed (653) 653 Prototype IDs (1) 20 Alien Tech Used (0) 0 Bonus (0) 0 TOTAL SCORE: 1728 Bonus ------- None Cogmind --------- Core Integrity 0/400 Matter 243/300 Energy 100/100 System Corruption 0% Temperature Cool (15) Movement Core (600) Ox11 Location -9/Materials Parts ------- > --- POWER (1) -------- (None) > --- PROPULSION (3) --- (None) > --- UTILITY (2) ------ Large Storage Unit Large Storage Unit > --- WEAPON (3) ------- Heavy Assault Rifle > --- INVENTORY (16) --- Improved Ion Engine Improved Ion Engine Beam Rifle Electrolaser Peak State ------------ > --- POWER ------------ Heavy Ion Engine > --- PROPULSION ------- Light Treads Light Treads Light Treads > --- UTILITY ---------- Large Storage Unit Large Storage Unit > --- WEAPON ----------- Electrolaser Electrolaser Electrolaser > --- INVENTORY -------- Light Ion Engine Improved Ion Engine Large Matter Pod EM Shotgun Small Laser Beam Rifle Electrolaser Light Assault Rifle Heavy Assault Rifle Heavy Assault Rifle [Rating: 18] Favorites ----------- Power Heavy Ion Engine Engine Heavy Ion Engine Propulsion Light Treads Treads Light Treads Wheel Wheel Hover Unit Backup Propulsion I Utility Large Storage Unit Storage Large Storage Unit Weapon Small Laser Energy Gun Small Laser Ballistic Gun Heavy Assault Rifle Build | -11 -10 -9 ------- Run | Scr Mat Mat Slots Evolved 2 | . . 2 Power . | . . . Propulsion 1 | . . 1 Utility . | . . . Weapon 1 | . . 1 Parts Attached 29 | 9 2 18 Power 2 | 1 . 1 Engine 2 | 1 . 1 Core . | . . . Reactor . | . . . Propulsion 5 | 3 . 2 Treads 4 | 2 . 2 Leg . | . . . Wheel 1 | 1 . . Hover . | . . . Flight . | . . . Utility 4 | 1 1 2 Device . | . . . Storage 4 | 1 1 2 Processor . | . . . Hackware . | . . . Protection . | . . . Artifact . | . . . Weapon 18 | 4 1 13 Energy Gun 10 | 3 1 6 Energy Cannon . | . . . Ballistic Gun 8 | 1 . 7 Ballistic Cannon . | . . . Launcher . | . . . Special Weapon . | . . . Impact Weapon . | . . . Slashing Weapon . | . . . Piercing Weapon . | . . . Special Melee Weapon . | . . . Unidentified Prototypes 1 | . . 1 Parts Lost 14 | . 1 13 Power 1 | . . 1 Propulsion 3 | . . 3 Utility . | . . . Weapon 10 | . 1 9 Highest Loss Streak 4 | . 1 4 Average Slot Usage (%) 83 | . 93 79 Engine 11 | . 14 9 Treads 23 | . 28 21 Storage 21 | . 22 21 Energy Gun 19 | . 27 15 Ballistic Gun 7 | . . 9 Naked Turns . | . . . Heaviest Build 49 | 11 13 49 Greatest Support 60 | 40 40 60 Greatest Overweight (x) 16 | 1 . 16 Average Overweight (x) . | . . . Largest Inventory Capacity 16 | 6 6 16 Average Capacity 9 | 5 6 11 Most Carried 13 | 6 1 13 Average Carried 3 | 5 . 4 Final Capacity 16 | 6 6 16 Final Carried 4 | . . 4 Class Distribution -------------------- 72% | Mutant 27% | Gunner Dominant Class ---------------- Mutant | -10/Materials Mutant | -9/Materials Resources | -11 -10 -9 ----------- Run | Scr Mat Mat Matter Collected 677 | 122 102 453 Remotely . | . . . Salvage Created 857 | . 144 713 Parts 80 | . 9 71 Haulers Intercepted . | . . . Recyclers Shooed 1 | . . 1 Parts Field Recycled . | . . . Retrieved Matter . | . . . Parts Self-Destructed . | . . . Prevented . | . . . Kills | -11 -10 -9 ------- Run | Scr Mat Mat Combat Hostiles Destroyed 23 | . 3 20 Guns 20 | . 3 17 AOE 3 | . . 3 Classes Destroyed 6 | . 2 4 Worker 1 | . . 1 Watcher 7 | . 2 5 Swarmer 12 | . . 12 Grunt 7 | . 3 4 Duelist 1 | . . 1 Sentry 3 | . . 3 Best Kill Streak 4 | . 2 4 Combat Bots Only 3 | . 2 3 Max Kills in Single Turn 3 | . 1 3 Gunslinging 1 | . . 1 Exploded 3 | . . 3 Melee . | . . . Uniques/NPCs Destroyed . | . . . Combat | -11 -10 -9 -------- Run | Scr Mat Mat Damage Taken 2069 | . 236 1833 Core 458 | . 42 416 Absorbed by Shields . | . . . Core Remaining (%) 91 | 100 83 . Volleys Fired 84 | . 26 58 Largest 3 | . 2 3 Hottest 189 | . 90 189 Shots Fired 167 | . 50 117 Gun 167 | . 50 117 Cannon . | . . . Launcher . | . . . Special . | . . . Kinetic 51 | . . 51 Thermal 104 | . 50 54 Explosive . | . . . Electromagnetic 12 | . . 12 Robot Hit Streak 13 | . 7 13 Robot Miss Streak 6 | . 3 6 Penetration Max . | . . . Secondary Targets 6 | . . 6 Max Gunslinging Chain 1 | . . 1 Shots Hit Robots 104 | . 35 69 Core Hits 45 | . 10 35 Critical Hits . | . . . Critical Kills . | . . . Critical Parts Destroyed . | . . . Melee Attacks . | . . . Impact . | . . . Slashing . | . . . Piercing . | . . . Sneak Attacks . | . . . Combat Hostiles . | . . . Follow-up Attacks . | . . . Damage Inflicted 1524 | . 381 1143 Guns 1427 | . 381 1046 Cannons . | . . . Explosions 96 | . . 96 Melee . | . . . Ramming 1 | . . 1 Kinetic 388 | . . 388 Thermal 965 | . 381 584 Explosive . | . . . Electromagnetic 170 | . . 170 Impact . | . . . Slashing . | . . . Piercing . | . . . Highest Corruption . | . . . Average Corruption . | . . . Corruption Purged . | . . . Overload Shots . | . . . Overflow Damage . | . . . Projectiles . | . . . Explosions . | . . . Melee . | . . . Knockbacks . | . . . Impact . | . . . Kinetic . | . . . Secondary . | . . . Self-Inflicted Damage 12 | . . 12 Shots 1 | . . 1 Rammed 2 | . . 2 Targets Rammed 2 | . . 2 Kicked . | . . . Crushed . | . . . Highest Temperature 470 | . 324 470 Average Temperature 114 | . 97 124 Received Heat Transfer 543 | . 132 411 Effects 4 | . 1 3 Shutdowns 1 | . . 1 Energy Bleed 2 | . 1 1 Damage (minor) 1 | . . 1 Siege Activations . | . . . Robots Corrupted . | . . . Combat Hostiles . | . . . Parts Fried . | . . . Impact Corruptions . | . . . Robots Melted . | . . . Combat Hostiles . | . . . Parts Melted 2 | . . 2 Heat Transferred 2205 | . 1016 1189 Parts Sabotaged . | . . . Parts Stolen . | . . . Parts Stripped . | . . . Power Chain Reactions 1 | . . 1 Missiles Intercepted . | . . . Alert | -11 -10 -9 ------- Run | Scr Mat Mat Peak Influence 300 | . 90 300 Average Influence 88 | . 47 132 Maximum Alert Level 1 | . . 1 Low Security (%) 81 | 100 100 69 Level 1 18 | . . 30 Level 2 . | . . . Level 3 . | . . . Level 4 . | . . . Level 5 . | . . . High Security . | . . . Max Security . | . . . Squads Dispatched 3 | . 2 1 Investigation 2 | . 2 . Extermination . | . . . Reinforcement 1 | . . 1 Assault . | . . . Garrison . | . . . Intercept . | . . . Construction Impeded . | . . . Haulers Reinforced . | . . . Stealth | -11 -10 -9 --------- Run | Scr Mat Mat Distress Signals 2 | . . 2 Communications Jammed . | . . . Distress Signals . | . . . Times Spotted 48 | . 12 36 Peak Tracking Total 6 | . 3 6 Tactical Retreats 4 | . 1 3 Traps | -11 -10 -9 ------- Run | Scr Mat Mat Traps Triggered 2 | . 2 . Indirectly . | . . . Trap Hack Attempts . | . . . Triggered . | . . . Disarmed . | . . . Reprogrammed . | . . . Reused . | . . . Traps Extracted . | . . . Installed . | . . . Triggered . | . . . Machines | -11 -10 -9 ---------- Run | Scr Mat Mat Machines Disabled . | . . . Max in Single Turn . | . . . Machines Sabotaged . | . . . Garrisons Compromised . | . . . Overloaded Fab Kills . | . . . Fab Network Shutdowns . | . . . Hacking | -11 -10 -9 --------- Run | Scr Mat Mat Machines Accessed 4 | . 2 2 Terminals 1 | . 1 . Fabricators . | . . . Repair Stations 1 | . . 1 Recycling Units 1 | . 1 . Scanalyzers 1 | . . 1 Garrison Access . | . . . Total Hacks 17 | . 11 6 Successful 13 | . 8 5 Failed 4 | . 3 1 Catastrophic . | . . . Database Lockouts . | . . . Manual . | . . . Terminals 5 | . 5 . Fabricators . | . . . Repair Stations 4 | . . 4 Recycling Units 6 | . 6 . Scanalyzers 2 | . . 2 Garrison Access . | . . . Terminal Hacks 4 | . 4 . Record 2 | . 2 . Alert Level 2 | . 2 . Fabricator Hacks . | . . . Repair Station Hacks 3 | . . 3 Scan Component 1 | . . 1 Repair 1 | . . 1 Refit 1 | . . 1 Recycling Unit Hacks 4 | . 4 . Recycle Component 1 | . 1 . Process 2 | . 2 . Report Inventory 1 | . 1 . Scanalyzer 2 | . . 2 Insert Component 1 | . . 1 Analyze 1 | . . 1 Garrison Access Hacks . | . . . Unauthorized Hacks . | . . . Terminals . | . . . Fabricators . | . . . Repair Stations . | . . . Recycling Units . | . . . Scanalyzers . | . . . Garrison Access . | . . . Data Cores Recovered . | . . . Used . | . . . Hacking Detections 2 | . 1 1 Full Trace Events 1 | . 1 . Feedback Events . | . . . Feedback Blocked . | . . . Robot Schematics Acquired . | . . . Robots Built . | . . . Matter . | . . . Time . | . . . Total Robot Build Rating . | . . . Part Schematics Acquired 1 | . . 1 Parts Built . | . . . Matter . | . . . Time . | . . . Total Part Build Rating . | . . . Parts Repaired 1 | . . 1 Time 26 | . . 26 Parts Recycled 1 | . 1 . Recycled Matter 71 | . 71 . Retrieved Matter . | . . . Retrieved Components . | . . . Parts Scanalyzed 1 | . . 1 Part Schematics Acquired 1 | . . 1 Parts Damaged . | . . . Bothacking | -11 -10 -9 ------------ Run | Scr Mat Mat Used RIF Installer . | . . . Robots Hacked . | . . . Non-combat . | . . . Combat . | . . . Robot Hacks Applied . | . . . Relay Couplers Released . | . . . Robots Rewired . | . . . Allies Hacked . | . . . Hacks Repelled . | . . . Allies | -11 -10 -9 -------- Run | Scr Mat Mat Total Allies . | . . . Largest Group . | . . . Highest-Rated Group . | . . . Highest-Rated Ally . | . . . Total Orders . | . . . Ally Attacks . | . . . Total Damage . | . . . Kills . | . . . Allies Corrupted . | . . . Allies Melted . | . . . Intel | -11 -10 -9 ------- Run | Scr Mat Mat Robot Analysis Total . | . . . Derelict Logs Recovered . | . . . Drone Launches . | . . . Drone Recoveries . | . . . Exploration | -11 -10 -9 ------------- Run | Scr Mat Mat Turns Passed 2208 | 416 489 1303 Spaces Moved 933 | 139 253 541 Core 40 | 24 . 16 Treads 789 | 29 253 507 Legs . | . . . Wheels 86 | 86 . . Hover 18 | . . 18 Flight . | . . . Fastest Speed 50 | 50 160 160 Average Speed 164 | 96 160 183 Slowest Speed 850 | 160 160 850 Overloaded Moves . | . . . Propulsion Burnouts . | . . . Robots Hopped . | . . . Cave-ins Triggered . | . . . Exploration Rate (%) 28 | 13 41 30 Regions Visited 2 Branch Regions . Pre-discovered Areas . | . . . Known Exits Taken . | . . . Unknown Exits Taken 2 | 1 1 . Scrap Searched . | . . . Spaces Dug . | . . . Terrain Destroyed 2 | . . 2 Melee . | . . . Projectile . | . . . AOE 2 | . . 2 Actions | -11 -10 -9 --------- Run | Scr Mat Mat Total 1464 | 423 287 754 Wait 354 | 257 4 93 Move 931 | 138 252 541 Hop . | . . . Pick Up 38 | 12 3 23 Fast Attach . | . . . Attach 27 | 7 2 18 Detach 10 | 1 . 9 Swap 2 | 2 . . Drop 16 | 6 . 10 Fire 84 | . 26 58 Melee . | . . . Ram 1 | . . 1 Kick . | . . . Crush 1 | . . 1 Escape Stasis . | . . . Rewire . | . . . Trap . | . . . Miscellaneous . | . . . Route ------- -11/Scrapyard -10/Materials -9/Materials (discovered 1 exit: [*Min]) History --------- Turn | Location | Event 24 | -11/Scrapyard | Discovered new exit (range 16) 417 | -11/Scrapyard | Entered Materials 421 | -10/Materials | Build established: Mutant 726 | -10/Materials | Discovered new exit (range 12) 906 | -10/Materials | Entered another Materials area 906 | -9/Materials | Evolved 2 slots: Propulsion x1, Weapon x1 957 | -9/Materials | Repaired Lgt. Treads 1639 | -9/Materials | Build established: Gunner 1792 | -9/Materials | Discovered new exit (range 8) 1869 | -9/Materials | Lost 4 parts (1n3w) 2138 | -9/Materials | Lost 4 parts (1p1n2w) 2150 | -9/Materials | Core integrity fell below 50% 2198 | -9/Materials | Core integrity fell below 20% 2209 | -9/Materials | Destroyed by G-47 Trooper with Particle Gun Last Messages --------------- G-34 Mercenary unfolds itself. Hvy. Assault Rifle destroyed. Hvy. Ion Engine destroyed. R-06 Scavenger collects Lgt. Ion Engine. S-10 Pest destroyed. R-06 Scavenger collects Lgt. Assault Rifle. Acquired 18 matter. R-06 Scavenger collects Lgt. Assault Rifle. K-01 Serf collects debris. Hvy. Assault Rifle destroyed. K-01 Serf collects debris. K-01 Serf destroyed. G-34 Mercenary destroyed. U-05 Engineer builds a Door. R-06 Scavenger collects Aluminum Leg. Slammed into R-06 Scavenger. Hvy. Assault Rifle destroyed. Electrolysis Chamber disabled. 02196_ Hvy. Assault Rifle destroyed. 02200_ K-01 Serf collects debris. Map ----- +----------------------------------------------------+ | | | | | | | ?????????????????????????????????????????????????? | | ?????????????????????????????????????????????????? | | ?????????????????????????????????????????????????? | | ?????????????????????????????????????????????????? | | ?????????????????????????????????????????????????? | | ?????????????????????????????????????????????????? | | ?????????????????????????????????????????????????? | | ?????????????????????????????????????????????????? | | ?????????????????????????????????????????????????? | | ????????????????????????????#????????????????????? | | ??????????????????????????? #????????????????????? | | ?????????????????????????? ?????????????????????? | | ??????????????????########+##????????????????????? | | ??????????????????# #????????????????????? | | ??????????????????# """ """ #????????????????????? | | ??????????????????# "" """ #????????????????????? | | ??????????????????# "" """ #????????????????????? | | ??????????????????# #????????????????????? | | ??????????????????# ! ] #????????????????????? | | ??????????????????# = #????????????????????? | | ??????????????????# %* #????????????????????? | | ???????+ ##########k##############?????????????? | | ???????# %s @ #?????????? | | ???????# % %g #?????????? | | ???????# u g #?????????? | | ???????# ######## #############+####?????????? | | ??????????????????# #??????????????????????????? | | ??????????????????# #??????????????????????????? | | ??????????????????# #??????????????????????????? | | ??????????????????# #??????????????????????????? | | ??????????????????# #??????????????????????????? | | ??????????????????# #??????????????????????????? | | ??????????????????# #??????????????????????????? | | ??????????????????# #??????????????????????????? | | ??????????????????# #??????????????????????????? | | ??????????????????# #??????????????????????????? | | ??????????????????# #??????????????????????????? | | ??????????????????# #??????????????????????????? | | ??????????????????# #??????????????????????????? | | ??????????????????# #??????????????????????????? | | ??????????????????# #??????????????????????????? | | ??????????????????# ######?????????????????????? | | ??????????????????# #?????????????????????? | | ??????????????????# % # #??????????????? | | ??????????????????# % + #??????????????? | | ?????????????########+## ######?########???????? | | ?????????????# !# ####### ####????? | +----------------------------------------------------+ Best States ------------- Heat Dissipation 28 Energy Generation 14 Energy Capacity 280 Matter Stores 407 Matter Capacity 450 Sight Range 16 Terrain Scan Density 10 Evasion (%) 50 Recoil Reduction 3 Item Schematics ----------------- Lgt. Ion Engine | -9/Materials | Scanalyzed Robot Schematics ------------------ None Fabricated ------------ Nothing Alien Tech Used ----------------- None Achievements -------------- None Challenges ------------ None Game ------ Seed WaveCentriumGun Manual? 0 Play Time 00:27:24 Cumulative 2.9 hours Start 2020.05.02 @ 16:40:11 End 2020.05.02 @ 17:03:53 Sessions 1 Manual Loads 0 Difficulty Rogue Special Mode None Game No. 12 Rogue 12 Adventurer 0 Explorer 0 Win Type - Total 0 Types 0/0/0/0/0/0/0 Lore% 6 Gallery% 7 Achievement% 7 Wizard Run 0 Options --------- ASCII 0 Keyboard 0 Movement Numpad Keybinds 0 Fullscreen 1 Font 18/SmallcapsGlow Map View 76x50 Tactical HUD 1 Map Filters NONE Filters NONE Steam 1 RUN: 80ee80d4-3941-4f44-ba54-3e2730828c74